bitfinex-derivatives/quotes_ETHF0:USTF0_20250621
["timestamp","ask_amount","ask_price","bid_price","bid_amount"]
[1750509036102,0.81837,2443.6,2443.5,1.49589]
[1750509036495,25.66137,2443.6,2443.5,1.49589]
[1750509040615,24.843,2443.6,2443.5,1.49589]
[1750509041307,24.843,2443.6,2443.5,2.86099]
[1750509041508,24.843,2443.6,2443.5,6.11918377]
[1750509041908,0.81829,2443.9,2443.8,0.81828]
[1750509042102,25.65929,2443.9,2443.8,0.81828]
[1750509042507,25.65929,2443.9,2443.8,1.51258]
[1750509043204,25.65929,2443.9,2443.8,0.6943]
[1750509043412,27.59699,2443.9,2443.8,0.6943]
[1750509044616,27.59699,2443.9,2443.8,1.51261]
[1750509045108,27.59699,2443.9,2443.8,0.6943]
[1750509045515,27.59699,2443.9,2443.8,1.51261]
[1750509045713,26.31749,2443.9,2443.8,1.51261]
[1750509045907,6.378,2444.0,2443.9,0.81827]
[1750509046114,0.81819,2444.2,2444.1,0.81818]
[1750509046414,25.65719,2444.2,2444.1,0.81818]
[1750509046608,0.81819,2444.2,2444.1,0.81818]
[1750509046811,25.65619,2444.2,2444.1,0.81818]
[1750509047616,0.81822,2444.1,2444.0,0.81822]
[1750509049216,0.81825,2444.0,2443.9,0.81825]
[1750509050418,0.81823,2444.1,2444.0,0.81823]
[1750509050921,0.81825,2444.0,2443.9,0.81825]
[1750509051514,0.81827,2443.9,2443.8,4.03160226]
[1750509051819,0.81827,2443.9,2443.8,0.76277599]
[1750509052016,25.65327,2443.9,2443.8,0.76277599]
[1750509052417,28.61492847,2443.9,2443.8,0.06847599]
[1750509053411,26.97437,2443.9,2443.8,0.88678599]
[1750509053720,26.97437,2443.9,2443.8,0.06847599]
[1750509054122,25.65327,2443.9,2443.8,0.88678599]
[1750509054319,24.835,2443.9,2443.8,0.88678599]
[1750509056723,24.835,2443.9,2443.8,0.06847599]
[1750509056914,28.27437,2443.9,2443.4,3.26882627]
[1750509057117,0.81844,2443.4,2443.3,8.61647627]
[1750509057316,0.81844,2443.4,2443.3,7.95017627]
[1750509057528,1.50323,2443.5,2443.4,0.81844]
[1750509058519,0.6848,2443.5,2443.4,0.81844]
[1750509059929,24.833,2443.6,2443.5,0.81841]
[1750509060231,25.65138,2443.6,2443.5,0.81841]
[1750509060721,0.81841,2443.5,2443.4,0.81842]
[1750509061319,25.6514,2443.6,2443.5,0.81841]
[1750509062025,0.81844,2443.4,2443.3,7.95017627]
[1750509062422,0.81843,2443.5,2443.4,0.81844]
[1750509062621,25.6514,2443.6,2443.5,0.81841]
[1750509063724,24.833,2443.6,2443.5,0.81841]
[1750509063925,6.31559847,2443.8,2443.3,9.17786627]
[1750509064230,0.81834,2443.7,2443.6,0.81835]
[1750509064532,25.65134,2443.7,2443.6,0.81835]
[1750509064916,24.833,2443.7,2443.6,1.50805]
[1750509065120,25.65134,2443.7,2443.6,1.50805]
[1750509065525,3.8567,2443.8,2443.6,1.50805]
[1750509065526,3.2078,2443.8,2443.7,0.81834]
[1750509065727,24.833,2443.9,2443.8,0.81831]
[1750509066229,0.81827,2444.0,2443.9,0.81827]
[1750509066417,0.81827,2443.9,2443.6,6.87985847]
[1750509066622,0.81827,2443.9,2443.8,0.81828]
[1750509067430,0.81827,2443.9,2443.7,0.81831]
[1750509067818,0.81831,2443.8,2443.7,0.81831]
[1750509069928,0.81834,2443.7,2443.6,6.05765]
[1750509070234,0.81834,2443.7,2443.6,1.50805]
[1750509071733,0.81832,2443.8,2443.7,0.81833]
[1750509072429,0.81834,2443.7,2443.6,1.50806]
[1750509074934,0.81837,2443.6,2443.5,3.26882627]
[1750509075128,0.81841,2443.5,2443.4,3.92552627]
[1750509075327,0.81844,2443.4,2443.3,6.47662627]
[1750509076129,0.81851,2443.2,2443.1,3.26882627]
[1750509076530,25.64951,2443.2,2443.1,3.26882627]
[1750509077133,25.64951,2443.2,2443.1,4.08736627]
[1750509078438,25.64951,2443.2,2443.1,0.81854]
[1750509080441,24.831,2443.2,2443.1,0.81854]
[1750509081734,1.2992,2443.3,2443.2,0.81851]
[1750509081932,24.831,2443.3,2443.2,0.81851]
[1750509083443,25.64947,2443.3,2443.2,0.81851]
[1750509084936,24.831,2443.3,2443.1,3.26882627]
[1750509085245,24.831,2443.3,2443.2,0.81851]
[1750509086828,25.64947,2443.3,2443.2,0.81851]
[1750509087636,0.81851,2443.2,2443.1,7.29514627]
[1750509087941,25.64949,2443.3,2443.2,0.81851]
[1750509088839,25.64949,2443.3,2443.1,6.47662627]
[1750509089843,25.64949,2443.3,2443.2,0.81851]
[1750509090143,0.81851,2443.2,2443.1,7.29514627]
[1750509090340,24.831,2443.3,2443.1,7.29514627]
[1750509090647,25.6495,2443.3,2443.1,7.29514627]
[1750509090840,0.81851,2443.2,2443.1,7.29514627]
[1750509093951,26.2924,2443.3,2443.2,0.81851]
[1750509095150,0.81851,2443.2,2443.1,7.36362226]
[1750509098350,3.48776,2443.4,2443.3,0.81847]
[1750509098548,0.81849,2443.3,2443.2,0.81848]
[1750509100251,0.81849,2443.3,2443.2,4.08730627]
[1750509103347,25.4641,2443.4,2443.2,3.26882627]
[1750509103552,0.81847,2443.3,2443.2,4.08730627]
[1750509105146,0.81847,2443.3,2443.2,0.81848]
[1750509109168,0.6361,2443.4,2443.2,0.81848]
[1750509109356,0.6361,2443.4,2443.3,4.09219234]
[1750509109653,25.64443,2443.5,2443.3,4.09219234]
[1750509110059,0.81843,2443.5,2443.3,4.09219234]
[1750509110255,25.64443,2443.5,2443.3,4.09219234]
[1750509110764,0.81844,2443.4,2443.3,4.09219234]
[1750509110958,0.81842,2443.5,2443.4,0.81841]
[1750509111254,25.64442,2443.5,2443.4,0.81841]
[1750509111656,24.826,2443.5,2443.4,0.81841]
[1750509111857,24.826,2443.5,2443.4,4.09213234]
[1750509112060,6.89391847,2444.1,2443.6,0.81837]
[1750509112258,0.81834,2443.7,2443.6,0.81837]
[1750509113359,0.81833,2443.8,2443.7,0.81833]
[1750509113566,26.27923,2443.8,2443.7,0.81833]
[1750509113867,0.81834,2443.7,2443.6,0.81835]
[1750509119962,0.81834,2443.7,2443.6,1.48475]
[1750509120360,0.81834,2443.7,2443.6,0.6664]
[1750509120663,0.81837,2443.6,2443.5,3.27202881]
[1750509120969,9.92697,2443.6,2443.5,3.27202881]
[1750509121761,0.81844,2443.4,2443.3,3.27202881]
[1750509121961,27.27999847,2443.4,2443.3,3.27202881]
[1750509122464,0.81847,2443.3,2443.2,3.27202881]
[1750509122668,2.77357,2443.3,2443.2,3.27202881]
[1750509123970,2.77357,2443.3,2443.2,4.09053881]
[1750509124186,2.77357,2443.3,2443.2,3.27202881]
[1750509125060,2.77357,2443.3,2443.2,4.09053881]
[1750509125257,2.77357,2443.3,2443.2,3.27202881]
[1750509126068,0.81851,2443.2,2443.1,3.27202881]
[1750509126270,2.23501,2443.2,2443.1,3.27202881]
[1750509127575,3.87556847,2443.2,2443.1,3.27202881]
[1750509127763,0.81861,2442.9,2442.8,3.27202881]
[1750509127962,25.63861,2442.9,2442.8,3.27202881]
[1750509128164,0.81864,2442.8,2442.7,7.29849881]
[1750509128365,1.45614,2442.8,2442.7,7.29849881]
[1750509128961,1.45614,2442.8,2442.7,6.47982881]
[1750509129362,3.09669847,2442.8,2442.7,6.47982881]
[1750509129562,2.73884,2442.8,2442.7,3.2078]
[1750509131973,2.73884,2442.8,2442.4,6.47982881]
[1750509131974,0.81874,2442.5,2442.4,6.47982881]
[1750509132266,0.81884,2442.2,2442.1,3.2078]
[1750509132867,0.81897,2441.9,2441.8,3.2078]
[1750509133067,24.822,2441.9,2441.8,3.2078]
[1750509133268,24.822,2441.9,2441.8,4.02678]
[1750509135371,24.822,2441.9,2441.8,3.2078]
[1750509135568,25.64094,2441.9,2441.8,3.2078]
[1750509135775,27.28149847,2441.9,2441.8,3.2078]
[1750509136475,28.68629847,2441.9,2441.8,3.2078]
[1750509136878,27.04574,2441.9,2441.8,3.2078]
[1750509137871,25.64094,2441.9,2441.8,3.2078]
[1750509138378,25.64594,2441.9,2441.8,3.2078]
[1750509139275,26.93654,2441.9,2441.8,3.2078]
[1750509139575,2.10954,2441.9,2441.8,3.27627599]
[1750509139877,26.93654,2441.9,2441.8,3.27627599]
[1750509140176,2.10954,2441.9,2441.8,3.27627599]
[1750509140378,26.93654,2441.9,2441.8,4.09525599]
[1750509140579,25.64594,2441.9,2441.8,3.27627599]
[1750509141973,25.64594,2441.9,2441.8,4.09525599]
[1750509142279,25.64594,2441.9,2441.8,3.27627599]
[1750509143980,25.64594,2441.9,2441.8,4.09525599]
[1750509146483,25.64594,2441.9,2441.8,0.88745599]
[1750509149978,25.64594,2441.9,2441.8,0.06847599]
[1750509150178,25.64594,2441.9,2441.8,0.88745599]
[1750509153082,25.64894,2441.9,2441.8,0.88745599]
[1750509154477,25.64894,2441.9,2441.8,0.06847599]
[1750509154679,25.64894,2441.9,2441.8,0.88745599]
[1750509154879,0.81894,2441.9,2441.8,0.88745599]
[1750509155080,25.64894,2441.9,2441.8,0.88745599]
[1750509156089,25.64894,2441.9,2441.8,0.06847599]
[1750509156790,25.64894,2441.9,2441.8,0.88745599]
[1750509156990,25.64894,2441.9,2441.8,0.06847599]
[1750509159688,25.64894,2441.9,2441.8,0.88745599]
[1750509162185,25.64894,2441.9,2441.8,0.06847599]
[1750509162986,0.81904,2441.6,2441.5,4.09072174]
[1750509163189,0.81902,2441.7,2441.4,3.2078]
[1750509163390,31.193,2441.6,2441.5,0.81906]
[1750509163586,32.01204,2441.6,2441.5,1.50536]
[1750509164892,32.01204,2441.6,2441.5,0.6863]
[1750509165191,32.01204,2441.6,2441.5,1.50538]
[1750509166991,0.636,2441.6,2441.5,1.50538]
[1750509167191,25.466,2441.6,2441.5,2.17728]
[1750509168987,25.467,2441.6,2441.5,2.17728]
[1750509170093,25.467,2441.6,2441.5,2.24575599]
[1750509170899,26.28604,2441.6,2441.5,2.24575599]
[1750509171098,25.467,2441.6,2441.5,2.24575599]
[1750509180104,0.636,2441.6,2441.5,2.24575599]
[1750509180301,26.28504,2441.6,2441.5,2.24575599]
[1750509180503,26.28504,2441.6,2441.5,1.57385599]
[1750509181096,25.466,2441.6,2441.5,1.57385599]
[1750509181298,26.28504,2441.6,2441.5,1.57385599]
[1750509181705,25.466,2441.6,2441.5,1.57385599]
[1750509188120,0.636,2441.6,2441.5,1.57385599]
[1750509188319,0.636,2441.6,2441.5,3.63715599]
[1750509188521,0.636,2441.6,2441.5,9.99915599]
[1750509189321,3.902,2442.0,2441.9,0.81894]
[1750509189520,25.5222,2442.0,2441.9,0.81894]
[1750509190416,0.6982,2442.1,2442.0,0.81891]
[1750509190627,25.5262,2442.1,2442.0,0.81891]
[1750509191421,0.6982,2442.1,2442.0,0.81891]
[1750509191617,25.5262,2442.1,2442.0,0.81891]
[1750509194412,28.48725847,2442.1,2441.8,3.8512]
[1750509194615,2.13943,2442.0,2441.9,0.81893]
[1750509194820,0.81894,2441.9,2441.8,4.02675]
[1750509195120,2.78344,2441.9,2441.8,4.02675]
[1750509200424,2.78344,2441.9,2441.8,4.09522599]
[1750509202428,2.78344,2441.9,2441.8,3.27627599]
[1750509202635,4.42399847,2441.9,2441.8,0.06847599]
[1750509203029,9.42399847,2441.9,2441.8,0.06847599]
[1750509203420,4.42399847,2441.9,2441.8,0.06847599]
[1750509205035,0.81908,2441.5,2441.4,4.02689]
[1750509205236,25.64308,2441.5,2441.4,4.02689]
[1750509206430,24.824,2441.5,2441.4,4.02689]
[1750509206821,0.81907,2441.6,2441.4,3.2078]
[1750509207026,0.644,2441.9,2441.5,2.0477]
[1750509207225,0.644,2441.9,2441.8,0.81898]
[1750509207434,25.468,2441.9,2441.8,0.81898]
[1750509207625,25.468,2441.9,2441.8,0.88745599]
[1750509209332,26.28694,2441.9,2441.8,0.88745599]
[1750509212340,26.28594,2441.9,2441.8,0.88745599]
[1750509219342,24.822,2441.9,2441.8,0.06847599]
[1750509219542,25.64094,2441.9,2441.8,0.88745599]
[1750509221648,0.81894,2441.9,2441.8,0.88745599]
[1750509221849,25.63994,2441.9,2441.8,0.88745599]
[1750509222148,0.81894,2441.9,2441.8,0.88745599]
[1750509222339,25.63994,2441.9,2441.8,0.88745599]
[1750509222741,26.91804,2441.9,2441.8,0.88745599]
[1750509223243,28.55859847,2441.9,2441.8,0.06847599]
[1750509223946,0.81908,2441.5,2441.4,3.2078]
[1750509224146,25.64008,2441.5,2441.4,3.2078]
[1750509224346,25.64008,2441.5,2441.4,4.02691]
[1750509224652,25.64008,2441.5,2441.4,3.2078]
[1750509224845,27.02448,2441.5,2441.4,3.2078]
[1750509227048,27.02448,2441.5,2441.4,0.81911]
[1750509227353,0.81911,2441.4,2441.3,1.50242]
[1750509227547,27.0245,2441.5,2441.4,0.81911]
[1750509228140,0.81911,2441.4,2441.3,1.50242]
[1750509228843,2.13601,2441.4,2441.3,1.50242]
[1750509229653,2.78021,2441.4,2441.3,1.50242]
[1750509230654,2.78021,2441.4,2441.3,0.6833]
[1750509230956,1.9611,2441.4,2441.3,1.50244]
[1750509231349,0.6442,2441.4,2441.3,1.50244]
[1750509231651,1.46331,2441.4,2441.3,1.50244]
[1750509231856,0.6442,2441.4,2441.3,1.50244]
[1750509233661,1.46331,2441.4,2441.3,1.50244]
[1750509234751,1.46331,2441.4,2441.3,0.81914]
[1750509234951,2.77951,2441.4,2441.3,0.81914]
[1750509235542,0.81916,2441.3,2441.2,0.81915]
[1750509235748,2.77953,2441.4,2441.3,0.81914]
[1750509235950,27.59953,2441.4,2441.3,0.81914]
[1750509236257,0.81915,2441.3,2441.2,0.81915]
[1750509236642,26.7804,2441.4,2441.3,0.81914]
[1750509236847,24.82,2441.4,2441.3,0.81914]
[1750509237048,6.359,2441.5,2441.4,0.88758599]
[1750509237244,31.179,2441.5,2441.4,0.88758599]
[1750509237455,31.179,2441.5,2441.4,1.54288599]
[1750509237955,31.99808,2441.5,2441.4,1.54288599]
[1750509238654,31.179,2441.5,2441.4,1.54288599]
[1750509239851,31.99808,2441.5,2441.4,0.06847599]
[1750509240057,34.46720592,2441.5,2441.4,0.06847599]
[1750509241151,0.81921,2441.1,2441.0,3.2078]
[1750509241352,24.819,2441.1,2441.0,4.02705]
[1750509242759,25.63821,2441.1,2441.0,4.02705]
[1750509242961,24.819,2441.1,2441.0,4.02705]
[1750509243152,25.63821,2441.1,2441.0,4.02705]
[1750509244158,25.63821,2441.1,2441.0,4.02704]
[1750509245058,24.819,2441.1,2441.0,4.02704]
[1750509245962,25.63821,2441.1,2441.0,4.02704]
[1750509246853,25.64021,2441.1,2441.0,4.02704]
[1750509248864,25.64021,2441.1,2441.0,3.2078]
[1750509249064,25.64021,2441.1,2441.0,4.02705]
[1750509249566,25.64021,2441.1,2441.0,3.2078]
[1750509259263,25.64021,2441.1,2441.0,3.27627599]
[1750509261473,25.64021,2441.1,2441.0,0.06847599]
[1750509262985,25.64021,2441.1,2441.0,0.88771599]
[1750509263562,25.64021,2441.1,2441.0,0.06847599]
[1750509264074,0.81921,2441.1,2441.0,0.06847599]
[1750509264275,25.63721,2441.1,2441.0,0.06847599]
[1750509265474,0.81921,2441.1,2441.0,0.06847599]
[1750509266077,2.04767,2441.6,2441.0,0.06847599]
[1750509266275,0.81918,2441.2,2441.1,6.35784847]
[1750509266485,0.81918,2441.2,2441.1,5.53865847]
[1750509266782,0.81918,2441.2,2441.1,6.35786847]
[1750509267177,0.81918,2441.2,2441.1,4.71731]
[1750509267577,0.81918,2441.2,2441.1,1.50951]
[1750509268780,0.81917,2441.3,2441.2,0.81918]
[1750509273484,0.81918,2441.2,2441.1,1.50949]
[1750509274376,0.81911,2441.5,2441.4,0.8191]
[1750509274679,25.63611,2441.5,2441.4,0.8191]
[1750509274883,3.2078,2441.8,2441.4,1.64055847]
[1750509275183,0.81903,2441.7,2441.6,0.81904]
[1750509277182,4.0268,2441.8,2441.7,0.81901]
[1750509277486,0.819,2441.8,2441.7,0.81901]
[1750509278685,0.81901,2441.7,2441.6,4.02682]
[1750509281590,0.819,2441.8,2441.7,0.81899]
[1750509282293,3.2078,2442.1,2441.6,3.2078]
[1750509282487,0.81897,2441.9,2441.8,0.81895]
[1750509284493,1.52613,2442.0,2441.9,0.81894]
[1750509284692,26.34013,2442.0,2441.9,0.81894]
[1750509284989,0.81893,2442.0,2441.9,0.81894]
[1750509286490,0.81894,2441.9,2441.8,1.46395]
[1750509286690,1.52444,2441.9,2441.8,1.46395]
[1750509287984,0.81898,2441.8,2441.7,0.819]
[1750509291600,0.81901,2441.7,2441.6,3.2078]
[1750509291800,0.81901,2441.7,2441.3,6.353]
[1750509291801,0.81911,2441.4,2441.3,4.02693]
[1750509292390,0.81911,2441.4,2441.3,3.2078]
[1750509292787,0.81911,2441.4,2441.3,4.02694]
[1750509294798,0.6625,2441.6,2441.5,0.81908]
[1750509294988,1.48154,2441.6,2441.5,0.81908]
[1750509296099,0.81904,2441.6,2441.5,0.81908]
[1750509297497,1.3731,2441.7,2441.6,0.81904]
[1750509297802,0.81898,2441.8,2441.7,0.819]
[1750509299804,0.81898,2441.8,2441.7,22.819]
[1750509301105,26.1475,2442.0,2441.7,22.0]
[1750509301299,22.81898,2441.8,2441.7,22.0]
[1750509302404,22.81898,2441.8,2441.7,22.81901]
[1750509305108,22.81898,2441.8,2441.7,22.88748599]
[1750509305809,22.81898,2441.8,2441.7,22.06847599]
[1750509306106,22.81898,2441.8,2441.7,22.88748599]
[1750509306308,22.81898,2441.8,2441.7,22.06847599]
[1750509307298,22.81898,2441.8,2441.7,22.88748599]
[1750509309507,22.81898,2441.8,2441.7,22.06847599]
[1750509309911,24.12888,2441.8,2441.7,22.06847599]
[1750509310110,22.81898,2441.8,2441.7,23.56438599]
[1750509310810,47.63198,2441.8,2441.7,23.56438599]
[1750509318315,22.81898,2441.8,2441.7,23.56438599]
[1750509318515,47.63198,2441.8,2441.7,23.56438599]
[1750509319018,22.81898,2441.8,2441.7,23.56438599]
[1750509319216,47.63198,2441.8,2441.7,23.56438599]
[1750509320617,46.813,2441.8,2441.7,23.56438599]
[1750509320821,47.63198,2441.8,2441.7,23.56438599]
[1750509322714,46.813,2441.8,2441.7,23.56438599]
[1750509323220,47.63198,2441.8,2441.7,23.56438599]
[1750509325724,46.813,2441.8,2441.7,23.56438599]
[1750509326826,22.0,2441.8,2441.7,25.20494446]
[1750509327023,22.0,2441.8,2441.7,26.59524446]
[1750509330531,22.0,2441.8,2441.7,25.20494446]
[1750509330720,22.0,2441.8,2441.7,23.56438599]
[1750509331321,22.81898,2441.8,2441.7,23.56438599]
[1750509332227,22.0,2441.8,2441.7,23.56438599]
[1750509334532,22.81898,2441.8,2441.7,23.56438599]
[1750509336027,22.81898,2441.8,2441.7,22.74537599]
[1750509336225,24.84928,2441.8,2441.7,23.56438599]
[1750509338035,31.48983847,2441.8,2441.7,22.88748599]
[1750509338333,24.84928,2441.8,2441.7,22.06847599]
[1750509341739,26.48983847,2441.8,2441.7,22.06847599]
[1750509344228,24.84928,2441.8,2441.7,22.06847599]
[1750509344631,49.70028,2441.8,2441.7,22.06847599]
[1750509345331,49.70028,2441.8,2441.7,22.76197599]
[1750509346036,22.81898,2441.8,2441.7,22.76197599]
[1750509346231,47.67698,2441.8,2441.7,22.76197599]
[1750509349037,49.09068,2441.8,2441.7,22.06847599]
[1750509351842,47.67698,2441.8,2441.7,22.88748599]
[1750509352030,22.81898,2441.8,2441.7,22.88748599]
[1750509352231,47.66598,2441.8,2441.7,22.88748599]
[1750509356043,47.66598,2441.8,2441.7,22.06847599]
[1750509356243,47.66598,2441.8,2441.7,22.88748599]
[1750509356434,46.835,2441.8,2441.7,22.88748599]
[1750509358336,47.65398,2441.8,2441.7,22.88748599]
[1750509363553,47.65398,2441.8,2441.7,22.06847599]
[1750509364736,48.32608,2441.8,2441.7,22.06847599]
[1750509366852,48.99848,2441.8,2441.7,22.06847599]
[1750509368155,0.81914,2441.3,2441.2,4.08864765]
[1750509368355,25.67014,2441.3,2441.2,0.661]
[1750509370457,25.67014,2441.3,2441.2,1.48018]
[1750509371453,25.67014,2441.3,2441.2,0.661]
[1750509372058,25.67014,2441.3,2441.2,1.48018]
[1750509372259,25.67014,2441.3,2441.2,0.661]
[1750509373148,25.67014,2441.3,2441.2,1.48018]
[1750509374359,25.67014,2441.3,2441.2,0.661]
[1750509374554,0.81918,2441.2,2441.1,3.2078]
[1750509374754,2.85648,2441.2,2441.1,3.2078]
[1750509375362,2.85648,2441.2,2441.1,4.02701]
[1750509375860,2.85648,2441.2,2441.1,3.2078]
[1750509376067,0.81925,2441.0,2440.9,0.81927]
[1750509376367,0.81928,2440.9,2440.8,3.2078]
[1750509376864,0.81928,2440.9,2440.8,4.02711]
[1750509379056,0.81928,2440.9,2440.8,3.2078]
[1750509379261,1.46748,2440.9,2440.8,4.02711]
[1750509379566,0.6482,2440.9,2440.8,4.02711]
[1750509380265,1.46748,2440.9,2440.8,3.2078]
[1750509380662,0.81931,2440.8,2440.7,0.81933]
[1750509380860,0.81933,2440.8,2440.7,0.81931]
[1750509381269,2.79021,2440.9,2440.8,0.81931]
[1750509383372,25.5356,2441.0,2440.9,0.81928]
[1750509384368,26.35484,2441.0,2440.9,0.81928]
[1750509385766,25.5356,2441.0,2440.9,0.81928]
[1750509387468,26.35484,2441.0,2440.9,0.81928]
[1750509388063,26.35484,2441.0,2440.9,1.46968]
[1750509388370,25.5356,2441.0,2440.9,1.46968]
[1750509388563,24.865,2441.0,2440.9,1.46968]
[1750509389165,25.68424,2441.0,2440.9,1.46968]
[1750509395378,25.68424,2441.0,2440.9,1.53815599]
[1750509398173,0.81924,2441.0,2440.9,1.53815599]
[1750509398485,25.64921,2441.2,2441.1,0.81919]
[1750509400179,0.81923,2441.1,2441.0,0.81922]
[1750509402977,0.6782,2441.4,2441.3,0.81914]
[1750509403184,0.81908,2441.5,2441.4,0.81911]
[1750509403384,0.81908,2441.6,2441.5,0.81908]
[1750509404786,0.81908,2441.5,2441.4,4.67549]
[1750509409087,0.81908,2441.5,2441.4,1.46769]
[1750509410488,0.81908,2441.5,2441.4,1.53616599]
[1750509415088,0.81908,2441.5,2441.4,0.71707599]
[1750509415287,2.81958,2441.5,2441.4,0.71707599]
[1750509418394,2.81958,2441.5,2441.4,1.53618599]
[1750509418994,2.81958,2441.5,2441.4,0.71707599]
[1750509419693,2.81958,2441.5,2441.4,1.53618599]
[1750509420392,1.52348,2441.5,2441.4,1.53618599]
[1750509421395,0.81908,2441.5,2441.4,1.53618599]
[1750509423194,0.81908,2441.5,2441.4,4.74398599]
[1750509423395,25.63806,2441.6,2441.5,0.81905]
[1750509423695,25.63806,2441.6,2441.5,2.05213679]
[1750509425796,0.81904,2441.7,2441.6,0.81902]
[1750509425996,25.63804,2441.7,2441.6,0.81902]
[1750509427398,25.63804,2441.7,2441.5,2.05213679]
[1750509427399,0.81904,2441.6,2441.5,2.05213679]
[1750509427600,0.81904,2441.6,2441.5,0.81905]
[1750509428897,0.81908,2441.5,2441.4,4.09537599]
[1750509430002,0.81908,2441.5,2441.4,3.27627599]
[1750509430205,1.52108,2441.5,2441.4,3.27627599]
[1750509431402,1.52108,2441.5,2441.4,4.09538599]
[1750509433216,1.52108,2441.5,2441.4,3.27627599]
[1750509433616,1.52108,2441.5,2441.4,0.06847599]
[1750509433916,1.52108,2441.5,2441.4,0.88758599]
[1750509437506,2.75416679,2441.5,2441.4,0.06847599]
[1750509437913,4.05086679,2441.5,2441.4,0.06847599]
[1750509440821,4.46244336,2441.5,2441.4,0.06847599]
[1750509441224,0.81928,2440.9,2440.8,4.08864765]
[1750509441518,0.81928,2440.9,2440.6,9.75125671]
[1750509441519,24.817,2440.9,2440.6,4.02715]
[1750509441724,1.50664,2440.8,2440.7,0.81935]
[1750509443117,0.81935,2440.7,2440.6,4.02716]
[1750509443313,0.81933,2440.8,2440.7,0.81935]
[1750509443627,24.817,2441.0,2440.9,0.81928]
[1750509443823,24.817,2441.0,2440.9,2.46394336]
[1750509444025,24.818,2441.1,2441.0,0.81925]
[1750509444226,25.63721,2441.1,2441.0,0.81925]
[1750509444417,24.818,2441.1,2441.0,0.81925]
[1750509445119,25.63721,2441.1,2441.0,0.81925]
[1750509450833,25.63721,2441.1,2441.0,2.46391336]
[1750509452835,25.63721,2441.1,2441.0,0.81925]
[1750509455135,25.63721,2441.1,2441.0,0.88772599]
[1750509456640,24.818,2441.1,2441.0,2.53238935]
[1750509457038,0.81918,2441.3,2441.2,0.81916]
[1750509457226,0.81918,2441.3,2441.2,4.02696]
[1750509457732,25.63713,2441.4,2441.3,0.81914]
[1750509460537,0.81913,2441.4,2441.3,0.81914]
[1750509460740,31.9931,2441.5,2441.4,0.81911]
[1750509461837,0.81913,2441.4,2441.3,0.81912]
[1750509462239,24.818,2441.5,2441.3,0.81912]
[1750509462437,25.6371,2441.5,2441.4,1.48031]
[1750509463137,25.6371,2441.5,2441.4,0.6612]
[1750509464239,25.6371,2441.5,2441.4,1.48031]
[1750509464441,0.8191,2441.5,2441.4,1.48031]
[1750509465039,0.8191,2441.5,2441.4,0.6612]
[1750509465839,0.8191,2441.5,2441.4,1.48031]
[1750509466340,0.8191,2441.5,2441.4,0.6612]
[1750509466840,0.8191,2441.5,2441.4,1.48031]
[1750509467340,0.8191,2441.5,2441.4,0.6612]
[1750509467845,0.8191,2441.5,2441.4,1.48031]
[1750509468438,0.8191,2441.5,2441.4,0.6612]
[1750509468641,0.81908,2441.5,2441.4,3.12496336]
[1750509468848,0.81908,2441.5,2441.4,3.12495336]
[1750509469037,0.81907,2441.6,2441.5,0.81907]
[1750509469343,0.81907,2441.6,2441.5,4.02687]
[1750509469845,0.81904,2441.7,2441.6,0.81903]
[1750509471849,0.81904,2441.7,2441.6,0.81902]
[1750509474346,1.51984,2441.7,2441.6,0.81902]
[1750509474946,0.81904,2441.7,2441.6,0.81902]
[1750509477743,0.81904,2441.6,2441.5,5.67151336]
[1750509478848,0.81904,2441.6,2441.5,3.2078]
[1750509479447,1.45714,2441.6,2441.5,3.2078]
[1750509480047,1.45714,2441.6,2441.5,4.02688]
[1750509480551,1.45714,2441.6,2441.5,3.2078]
[1750509481349,0.81908,2441.5,2441.4,1.56477599]
[1750509484152,0.81908,2441.5,2441.4,0.06847599]
[1750509484355,2.92798,2441.5,2441.4,0.06847599]
[1750509484851,0.81914,2441.3,2441.2,10.37996]
[1750509485552,1.48274,2441.3,2441.2,4.02696]
[1750509486756,0.6636,2441.3,2441.2,4.02696]
[1750509487658,24.811,2441.5,2441.4,0.81911]
[1750509488158,25.63008,2441.5,2441.4,0.81911]
[1750509490263,0.81913,2441.4,2441.3,0.81912]
[1750509490457,0.81914,2441.3,2441.2,3.2078]
[1750509490646,1.51804,2441.3,2441.2,3.2078]
[1750509491161,1.51804,2441.3,2441.2,4.02695]
[1750509491359,2.82884,2441.3,2441.2,4.02695]
[1750509493160,2.0097,2441.3,2441.2,4.02695]
[1750509493354,25.4988,2441.7,2441.2,4.85246336]
[1750509493562,0.81908,2441.5,2441.4,0.81908]
[1750509495159,2.76247,2441.6,2441.5,0.81908]
[1750509495762,2.76247,2441.6,2441.5,0.88755599]
[1750509495962,2.76247,2441.6,2441.5,0.06847599]
[1750509502057,0.81914,2441.3,2441.2,3.2078]
[1750509502260,25.62814,2441.3,2441.2,3.2078]
[1750509502751,28.35944,2441.3,2441.2,3.2078]
[1750509508159,34.70944,2441.3,2441.2,3.2078]
[1750509510175,34.70944,2441.3,2441.2,4.02698]
[1750509511264,34.70944,2441.3,2441.2,3.2078]
[1750509511666,34.70944,2441.3,2441.2,4.67298]
[1750509512673,33.35514,2441.3,2441.2,4.67298]
[1750509513075,33.35514,2441.3,2441.2,3.8538]
[1750509513274,33.35514,2441.3,2441.2,4.67298]
[1750509514277,33.35514,2441.3,2441.2,3.8538]
[1750509515077,33.35514,2441.3,2441.2,4.74145599]
[1750509515376,33.35514,2441.3,2441.2,3.92227599]
[1750509516271,33.35514,2441.3,2441.2,4.74145599]
[1750509518884,31.97814,2441.3,2441.2,4.74145599]
[1750509520085,0.81914,2441.3,2441.2,4.74145599]